bitfinex-derivatives/quotes_SOLF0:USTF0_20250309
["timestamp","ask_amount","ask_price","bid_price","bid_amount"]
[1741543077776,7.9117,126.41,126.34,8.9152]
[1741543078071,52.3312,126.43,126.34,1.0]
[1741543078474,0.05820036,126.39,126.36,0.05635805]
[1741543078774,39.57820036,126.39,126.36,0.05635805]
[1741543079072,39.57820036,126.39,126.31,222.69605041]
[1741543079273,39.57820036,126.39,126.34,7.9153]
[1741543079468,39.68,126.42,126.33,39.74]
[1741543079670,12.8112,126.43,126.35,52.4615112]
[1741543079976,39.86,126.48,126.38,52.4615112]
[1741543080167,47.7853,126.51,126.39,273.7157]
[1741543080373,0.05892545,126.44,126.39,273.7157]
[1741543080773,0.05892545,126.44,126.41,52.4615112]
[1741543081073,39.88,126.51,126.42,39.82]
[1741543081471,43.9922,126.54,126.44,52.4615112]
[1741543081876,52.4615112,126.53,126.42,39.82]
[1741543082176,0.05001409,126.49,126.47,7.9072]
[1741543082373,0.05001409,126.49,126.46,0.05160151]
[1741543082576,0.05001409,126.49,126.47,0.05423131]
[1741543082977,0.05001409,126.49,126.39,365.9372112]
[1741543083179,7.907,126.48,126.42,7.9103]
[1741543083378,92.2215112,126.5,126.39,313.4215112]
[1741543083578,92.2215112,126.5,126.39,260.96]
[1741543083975,192.0,126.53,126.4,39.68]
[1741543084174,56.6537112,126.54,126.42,52.4615112]
[1741543084175,39.7,126.52,126.42,52.4615112]
[1741543084382,39.7,126.52,126.43,39.7]
[1741543084570,0.05406413,126.48,126.43,39.7]
[1741543084974,0.05406413,126.48,126.43,0.45969236]
[1741543085174,6.413e-05,126.48,126.47,7.9076]
[1741543085369,6.413e-05,126.48,126.47,47.5476]
[1741543085576,39.64,126.58,126.47,43.6]
[1741543085871,43.6793,126.6,126.5,52.4615112]
[1741543086082,39.66,126.62,126.51,300.56]
[1741543086384,3.9079,126.63,126.53,52.4615112]
[1741543086571,43.6993,126.65,126.48,192.0]
[1741543086775,0.05385181,126.59,126.57,0.05035313]
[1741543086971,39.78,126.58,126.57,0.05035313]
[1741543087178,39.78,126.58,126.49,4.2035]
[1741543087477,40.38,126.61,126.51,52.4615112]
[1741543087873,40.42,126.61,126.51,92.8815112]
[1741543088072,40.42,126.61,126.51,40.42]
[1741543088277,52.4615112,126.58,126.49,4.2035]
[1741543088479,0.05398148,126.57,126.52,52.4615112]
[1741543088672,48.4989,126.65,126.53,48.7949]
[1741543088881,52.4615112,126.63,126.47,260.9]
[1741543089073,52.4615112,126.63,126.49,52.4615112]
[1741543089074,4.0196,126.62,126.49,52.4615112]
[1741543089275,52.4615112,126.6,126.49,52.4615112]
[1741543089478,40.48,126.61,126.5,40.48]
[1741543089676,44.4593,126.65,126.55,52.4615112]
[1741543089878,44.4593,126.65,126.55,40.44]
[1741543090083,0.05279806,126.57,126.55,40.44]
[1741543090275,40.56,126.61,126.52,93.0415112]
[1741543090476,0.05921082,126.57,126.55,52.51502978]
[1741543090681,40.54,126.64,126.56,40.56]
[1741543090880,40.6,126.67,126.61,7.8987]
[1741543091182,40.6,126.67,126.57,4.0458]
[1741543091183,52.4615112,126.66,126.57,4.0458]
[1741543091383,52.4615112,126.66,126.56,44.8807]
[1741543091578,7.898,126.63,126.56,52.7821]
[1741543091783,40.68,126.62,126.55,260.84]
[1741543092081,7.9016,126.57,126.51,7.905]
[1741543092287,40.82,126.58,126.5,4.2981]
[1741543092681,93.2815112,126.58,126.42,32.49434284]
[1741543092886,192.0,126.57,126.44,52.4615112]
[1741543093295,52.4615112,126.55,126.44,52.4615112]
[1741543093487,0.05510534,126.52,126.49,0.05231152]
[1741543094291,0.05510534,126.52,126.47,40.76]
[1741543094292,0.05510534,126.52,126.47,54.03351508]
[1741543094679,0.05510534,126.52,126.48,260.8]
[1741543094880,4.2525,126.59,126.5,52.4615112]
[1741543095086,44.7961,126.61,126.57,7.9012]
[1741543095283,52.4615112,126.58,126.47,52.4615112]
[1741543095586,40.8,126.57,126.47,52.4615112]
[1741543096189,0.04968468,126.53,126.51,0.05205221]
[1741543097088,0.04968468,126.53,126.47,17.22125577]
[1741543097393,0.04968468,126.53,126.48,52.4615112]
[1741543097692,0.04968468,126.53,126.46,93.4015112]
[1741543098080,0.04968468,126.53,126.46,40.94]
[1741543098285,40.78,126.52,126.42,52.4615112]
[1741543098592,40.78,126.52,126.48,0.02462637]
[1741543099096,0.05832672,126.51,126.48,0.02462637]
[1741543100190,0.05832672,126.51,126.46,225.64491873]
[1741543100882,0.05832672,126.51,126.46,4.0606]
[1741543101088,0.05832672,126.51,126.41,10.8679314]
[1741543101089,40.72,126.5,126.41,10.8679314]
[1741543101290,40.72,126.5,126.42,4.3116]
[1741543101493,7.9067,126.49,126.42,4.3116]
[1741543101792,0.05914646,126.47,126.42,4.3116]
[1741543102396,0.05914646,126.47,126.42,44.9716]
[1741543102694,0.05914646,126.47,126.43,52.4615112]
[1741543103090,0.05914646,126.47,126.42,105.3436112]
[1741543103296,0.05914646,126.47,126.41,8.2043]
[1741543103989,40.72,126.46,126.37,260.8]
[1741543104189,40.72,126.46,126.37,4.204]
[1741543104389,4.0709,126.45,126.37,4.204]
[1741543104590,0.05267306,126.43,126.37,4.204]
[1741543105591,0.05267306,126.43,126.38,7.9128]
[1741543105792,0.05267306,126.43,126.37,4.204]
[1741543106495,0.05267306,126.43,126.38,52.4615112]
[1741543106999,0.05267306,126.43,126.41,52.4615112]
[1741543107390,40.66,126.47,126.41,52.4615112]
[1741543108300,40.66,126.47,126.42,4.2314]
[1741543108486,40.66,126.47,126.41,52.4615112]
[1741543108487,40.66,126.47,126.39,260.9]
[1741543108694,0.05902305,126.46,126.43,0.05247526]
[1741543108893,40.74,126.46,126.41,7.9109]
[1741543109191,40.7963582,126.46,126.43,0.05267306]
[1741543109387,7.909,126.45,126.36,17.19167662]
[1741543109591,40.74,126.46,126.36,17.19167662]
[1741543110498,0.05006724,126.42,126.36,17.19167662]
[1741543110698,0.05006724,126.42,126.41,7.9108]
[1741543111093,0.05006724,126.42,126.39,60.3739112]
[1741543111299,0.05006724,126.42,126.38,40.56]
[1741543111495,40.74,126.46,126.4,52.4615112]
[1741543111702,204.1091,126.53,126.43,52.4615112]
[1741543112196,48.6404,126.53,126.43,52.4615112]
[1741543112505,48.6404,126.53,126.46,13.22120356]
[1741543112798,0.05306512,126.49,126.47,0.05006724]
[1741543113401,0.05306512,126.49,126.48,7.907]
[1741543113797,0.05306512,126.49,126.47,0.05006724]
[1741543114601,0.05306512,126.49,126.48,7.907]
[1741543114994,0.05306512,126.49,126.47,0.05006724]
[1741543115392,0.05306512,126.49,126.42,58.0200708]
[1741543116405,0.05306512,126.49,126.48,7.907]
[1741543116802,3.9309,126.56,126.46,40.04]
[1741543117005,51.9883,126.57,126.52,7.9043]
[1741543117206,40.04,126.57,126.48,52.4615112]
[1741543118007,0.06021229,126.54,126.51,0.05306512]
[1741543118304,1.229e-05,126.54,126.51,52.51457632]
[1741543118501,1.229e-05,126.54,126.53,7.9038]
[1741543119005,44.0068,126.62,126.53,3.96]
[1741543119209,44.0068,126.62,126.58,7.9003]
[1741543119409,44.0068,126.62,126.55,52.4615112]
[1741543119605,44.0068,126.62,126.6,7.899]
[1741543119805,44.1416,126.65,126.55,39.94]
[1741543120002,39.92,126.65,126.58,52.4615112]
[1741543120201,48.3975,126.68,126.63,7.8971]
[1741543120403,8.4575,126.68,126.59,39.97609753]
[1741543120610,0.05638638,126.67,126.61,52.4615112]
[1741543120809,0.05638638,126.67,126.62,0.05856458]
[1741543121111,0.05638638,126.67,126.64,52.4615112]
[1741543121308,0.05638638,126.67,126.62,0.05856458]
[1741543121503,0.05638638,126.67,126.6,13.27976814]
[1741543121699,0.05638638,126.67,126.63,7.8975]
[1741543121903,0.05638638,126.67,126.6,13.27976814]
[1741543122103,0.05638638,126.67,126.62,52.4615112]
[1741543122310,0.05638638,126.67,126.64,7.8965]
[1741543122611,0.05638638,126.67,126.62,52.4615112]
[1741543123405,0.05638638,126.67,126.6,56.4099112]
[1741543124308,0.05638638,126.67,126.6,52.4615112]
[1741543124501,0.05638638,126.67,126.6,13.22120356]
[1741543125308,0.05638638,126.67,126.58,313.3215112]
[1741543125507,4.0556,126.67,126.58,260.86]
[1741543125705,0.05351267,126.64,126.58,260.86]
[1741543125901,0.05351267,126.64,126.5,85.96724061]
[1741543126105,52.4615112,126.61,126.5,85.96724061]
[1741543126301,7.9012,126.58,126.5,85.96724061]
[1741543126507,12.5951,126.57,126.5,85.96724061]
[1741543126705,7.9027,126.55,126.5,85.96724061]
[1741543126910,39.89749614,126.56,126.5,85.96724061]
[1741543127310,39.89749614,126.56,126.47,10.8679314]
[1741543127511,39.84,126.56,126.46,4.1219666]
[1741543127812,0.05604219,126.53,126.46,4.1219666]
[1741543128307,0.05604219,126.53,126.46,8.1834666]
[1741543128508,0.05604219,126.53,126.48,52.4615112]
[1741543129008,0.05604219,126.53,126.46,8.1834666]
[1741543129009,0.05604219,126.53,126.46,4.1219666]
[1741543129207,39.68,126.52,126.46,4.1219666]
[1741543129810,0.05197042,126.5,126.46,4.1219666]
[1741543130502,0.05197042,126.5,126.45,300.32]
[1741543130713,0.05197042,126.5,126.45,273.10795896]
[1741543131207,0.05197042,126.5,126.46,7.9078]
[1741543131917,0.05197042,126.5,126.45,273.10795896]
[1741543132211,0.05197042,126.5,126.47,52.4615112]
[1741543132407,41.38,126.5,126.36,277.96724061]
[1741543132612,41.54,126.53,126.42,52.4615112]
[1741543132911,41.54,126.53,126.42,94.0015112]
[1741543133213,41.54,126.53,126.45,52.4615112]
[1741543133714,0.05832408,126.5,126.45,7.9085]
[1741543134109,0.05832408,126.5,126.42,13.27482169]
[1741543134516,41.54,126.53,126.42,13.27482169]
[1741543134906,0.05429291,126.49,126.44,7.909]
[1741543135107,0.05429291,126.49,126.42,13.27482169]
[1741543135814,7.9072,126.48,126.42,7.9105]
[1741543136114,41.28,126.49,126.42,52.4615112]
[1741543136313,0.05088408,126.46,126.42,52.4615112]
[1741543136611,0.05088408,126.46,126.42,13.22120356]
[1741543137008,8.408e-05,126.46,126.45,52.4615112]
[1741543137209,8.408e-05,126.46,126.38,1.37609237]
[1741543137418,49.2039,126.53,126.46,7.908]
[1741543137712,41.3,126.53,126.42,95.2015112]
[1741543137912,41.3,126.53,126.45,52.4615112]
[1741543138215,0.053103,126.49,126.46,0.0508]
[1741543139817,0.053103,126.49,126.45,260.8]
[1741543139818,52.4615112,126.48,126.39,260.8]
[1741543140114,12.2778,126.47,126.39,260.8]
[1741543140308,7.9084,126.46,126.39,260.8]
[1741543140511,42.8,126.45,126.39,260.8]
[1741543140906,0.05748637,126.43,126.39,260.8]
[1741543141806,260.8,126.52,126.39,260.8]
[1741543141807,7.9047,126.52,126.4,95.0815112]
[1741543142010,4.2911,126.51,126.43,52.4615112]
[1741543142217,4.2911,126.51,126.4,50.7206]
[1741543142218,4.2208,126.52,126.45,52.4615112]
[1741543142719,4.2208,126.52,126.45,13.22120356]
[1741543143020,0.0594642,126.5,126.47,0.05748637]
[1741543143417,0.0594642,126.5,126.48,7.9064]
[1741543143617,0.0594642,126.5,126.47,0.05748637]
[1741543144821,12.5719,126.57,126.47,313.37899757]
[1741543145114,8.3651,126.57,126.5,52.4615112]
[1741543145308,8.3651,126.57,126.5,94.8415112]
[1741543145824,8.3651,126.57,126.5,7.9056]
[1741543146022,0.05371361,126.55,126.52,0.05020616]
[1741543146515,42.48,126.54,126.39,44.48]
[1741543146721,4.0811,126.53,126.43,52.4615112]
[1741543146915,4.0811,126.53,126.44,44.48]
[1741543147115,4.0811,126.53,126.48,7.9067]
[1741543147316,4.0811,126.53,126.44,44.48]
[1741543147522,4.0811,126.53,126.45,7.9086]
[1741543147721,0.0507019,126.5,126.47,0.05371184]
[1741543148121,0.0507019,126.5,126.48,7.9066]
[1741543148621,0.0507019,126.5,126.47,0.05371184]
[1741543148817,0.0507019,126.5,126.44,44.48]
[1741543148818,0.0507019,126.5,126.44,7.9093]
[1741543149116,0.0507019,126.5,126.38,268.04687475]
[1741543149117,96.7922131,126.5,126.38,319.1325112]
[1741543149324,52.4615112,126.46,126.38,260.86]
[1741543149518,48.4337,126.45,126.38,260.86]
[1741543149819,48.4337,126.45,126.38,268.7727]
[1741543150019,0.05854929,126.43,126.38,260.86]
[1741543150521,0.05854929,126.43,126.4,52.4615112]
[1741543150822,0.05854929,126.43,126.38,260.86]
[1741543151011,0.05854929,126.43,126.38,268.7728]
[1741543151215,0.05854929,126.43,126.38,260.86]
[1741543151816,0.05854929,126.43,126.38,221.61969236]
[1741543152017,0.05854929,126.43,126.38,229.53269236]
[1741543152321,0.05854929,126.43,126.38,221.61969236]
[1741543152716,0.05854929,126.43,126.38,274.08120356]
[1741543153220,0.05854929,126.43,126.42,7.9107]
[1741543153616,4.0508,126.5,126.47,7.9072]
[1741543153918,4.0508,126.5,126.45,43.98]
[1741543154120,196.3044,126.58,126.44,52.4615112]
[1741543154121,52.4615112,126.57,126.44,96.4415112]
[1741543154321,52.4615112,126.55,126.44,96.4415112]
[1741543154516,52.4615112,126.55,126.44,43.98]
[1741543154722,0.05092183,126.51,126.48,0.05927095]
[1741543155025,0.05092183,126.51,126.49,52.4615112]
[1741543155423,0.05092183,126.51,126.5,7.9057]
[1741543155722,2.183e-05,126.51,126.5,7.9057]
[1741543155924,2.183e-05,126.51,126.49,60.3677112]
[1741543156123,2.183e-05,126.51,126.46,313.3415112]
[1741543156425,2.183e-05,126.51,126.46,260.88]
[1741543156922,43.77874863,126.52,126.47,0.05987118]
[1741543157322,60.6897112,126.51,126.4,260.86]
[1741543157521,60.6897112,126.51,126.41,7.9111]
[1741543157522,7.9072,126.48,126.41,7.9111]
[1741543157725,7.9072,126.48,126.4,260.86]
[1741543157726,43.74,126.47,126.4,260.86]
[1741543157925,43.7,126.5,126.42,52.4615112]
[1741543158121,43.7,126.5,126.46,7.9078]
[1741543158321,43.7,126.5,126.42,52.4615112]
[1741543158522,0.05285964,126.49,126.42,52.4615112]
[1741543158720,0.05285964,126.49,126.42,56.4198112]
[1741543158918,0.05285964,126.49,126.45,52.4615112]
[1741543159121,0.05285964,126.49,126.47,7.9072]
[1741543159326,5.964e-05,126.49,126.45,96.0215112]
[1741543159626,5.964e-05,126.49,126.48,60.3685112]
[1741543161021,5.964e-05,126.49,126.48,21.12820356]
[1741543161223,5.964e-05,126.49,126.48,7.907]
[1741543161920,5.964e-05,126.49,126.47,0.05485097]
[1741543162321,8.3959,126.59,126.47,52.51636217]
[1741543162619,4.0882,126.58,126.5,52.4615112]
[1741543162820,244.4615112,126.57,126.49,7.906]
[1741543163122,244.4615112,126.57,126.46,52.4615112]
[1741543163329,192.0,126.57,126.46,52.4615112]
[1741543163524,192.0,126.57,126.5,0.05043975]
[1741543163827,0.0569283,126.53,126.5,0.05043975]
[1741543164028,44.1169283,126.53,126.44,223.43333211]
[1741543164229,44.1169283,126.53,126.44,221.65013211]
[1741543164429,8.3731,126.52,126.44,221.65013211]
[1741543164923,60.8346112,126.52,126.42,52.4615112]
[1741543165121,60.8346112,126.52,126.4,34.60401776]
[1741543165122,0.05119769,126.49,126.4,34.60401776]
[1741543165318,44.0,126.48,126.4,32.82081776]
[1741543165621,7.909,126.45,126.4,32.82081776]
[1741543165821,56.0312,126.44,126.4,32.82081776]
[1741543166321,0.05507333,126.43,126.4,32.82081776]
[1741543166625,0.05507333,126.43,126.39,54.44097516]
[1741543166820,0.05507333,126.43,126.39,28.40517516]
[1741543167020,0.05507333,126.43,126.38,204.619307]
[1741543168625,0.05507333,126.43,126.41,7.9109]
[1741543168929,0.05507333,126.43,126.39,64.9842112]
[1741543169424,0.05507333,126.43,126.39,12.5227]
[1741543169627,43.93507333,126.43,126.38,204.619307]
[1741543169825,43.93507333,126.43,126.35,260.88]
[1741543170131,43.88,126.43,126.35,221.63969236]
[1741543170421,0.0505757,126.4,126.35,221.63969236]
[1741543171227,0.0505757,126.4,126.37,7.9134]
[1741543171626,0.0505757,126.4,126.35,221.63969236]
[1741543171825,0.0505757,126.4,126.36,7.9143]
[1741543172633,0.0505757,126.4,126.35,221.63969236]
[1741543172928,0.0505757,126.4,126.37,7.9138]
[1741543173123,0.0505757,126.4,126.35,190.31318472]
[1741543173626,0.0505757,126.4,126.37,7.9138]
[1741543173925,0.0505757,126.4,126.35,190.31318472]
[1741543174233,0.0505757,126.4,126.37,7.9135]
[1741543174627,0.0505757,126.4,126.35,242.77469592]
[1741543174930,0.0505757,126.4,126.35,190.31318472]
[1741543175125,0.0505757,126.4,126.33,52.4615112]
[1741543175928,0.0505757,126.4,126.36,7.9141]
[1741543176130,0.0505757,126.4,126.33,21.13530356]
[1741543176632,0.0505757,126.4,126.35,7.9146]
[1741543176932,0.0505757,126.4,126.33,21.13530356]
[1741543177335,0.0505757,126.4,126.36,7.9144]
[1741543177527,0.0505757,126.4,126.33,21.13530356]
[1741543177724,0.0505757,126.4,126.34,7.9155]
[1741543177930,7.9626757,126.4,126.33,21.13530356]
[1741543178434,0.0505757,126.4,126.36,7.9145]
[1741543178635,0.0505757,126.4,126.35,52.4615112]
[1741543178835,43.88,126.43,126.35,52.4615112]
[1741543179029,0.05823297,126.39,126.35,52.4615112]
[1741543179230,0.05823297,126.39,126.35,13.22120356]
[1741543179537,0.05823297,126.39,126.38,7.9132]
[1741543179829,52.4615112,126.48,126.38,7.9132]
[1741543179830,192.0,126.51,126.38,261.0]
[1741543180030,192.0,126.51,126.44,52.4615112]
[1741543180227,18.96543886,126.53,126.46,52.4615112]
[1741543180429,10.44603886,126.53,126.51,7.9046]
[1741543180629,10.44603886,126.53,126.47,4.1005]
[1741543181032,0.05408359,126.51,126.5,7.9055]
[1741543181331,0.05408359,126.51,126.49,0.05015565]
[1741543181535,0.05408359,126.51,126.5,7.9057]
[1741543181735,3.886e-05,126.53,126.49,52.51166685]
[1741543181931,81.9453145,126.54,126.5,42.68]
[1741543182133,8.849e-05,126.54,126.53,60.3653112]
[1741543182435,8.849e-05,126.54,126.52,52.4615112]
[1741543182625,89.50581647,126.55,126.52,52.4615112]
[1741543182830,89.50581647,126.55,126.54,7.9032]
[1741543183030,47.57451647,126.55,126.54,7.9032]
[1741543183225,47.62454206,126.55,126.54,7.9032]
[1741543183427,35.35774206,126.55,126.54,7.9032]
[1741543183833,8.26134206,126.55,126.54,7.9032]
[1741543184131,4.206e-05,126.55,126.54,60.3647112]
[1741543184339,4.206e-05,126.55,126.52,52.51531076]
[1741543184541,4.206e-05,126.55,126.54,52.4615112]
[1741543184931,4.206e-05,126.55,126.54,60.3647112]
[1741543185131,4.206e-05,126.55,126.52,52.51531076]
[1741543185334,4.206e-05,126.55,126.52,13.27500312]
[1741543185631,4.206e-05,126.55,126.51,42.4]
[1741543185834,95.1015112,126.61,126.5,52.4615112]
[1741543186035,192.0,126.6,126.5,52.4615112]
[1741543186235,7.9012,126.58,126.5,7.9057]
[1741543186432,0.05262176,126.56,126.54,0.05659322]
[1741543187030,0.05262176,126.56,126.47,260.96]
[1741543187239,102.7681112,126.57,126.47,260.96]
[1741543187638,52.4615112,126.55,126.46,131.62841051]
[1741543188047,50.3066,126.57,126.46,123.72071051]
[1741543188244,0.05433931,126.52,126.46,84.53587464]
[1741543188843,7.9065,126.49,126.46,84.53587464]
[1741543189043,42.16,126.49,126.46,84.53587464]
[1741543189445,42.21287996,126.49,126.46,84.53587464]
[1741543190545,42.21287996,126.49,126.39,260.82]
[1741543190948,6.865e-05,126.46,126.42,52.4615112]
[1741543191147,199.9031,126.55,126.45,52.4615112]
[1741543191452,192.0,126.55,126.45,52.4615112]
[1741543191649,7.9049,126.52,126.45,60.3698112]
[1741543191850,234.04,126.55,126.46,52.4615112]
[1741543192347,0.05022975,126.52,126.49,0.05031924]
[1741543193449,0.05022975,126.52,126.49,7.95631924]
[1741543193945,0.05022975,126.52,126.49,0.05031924]
[1741543194450,41.93022975,126.52,126.42,52.4615112]
[1741543194646,7.9068,126.49,126.42,7.9103]
[1741543194850,41.88,126.52,126.4,313.3015112]
[1741543195050,7.9052,126.51,126.4,313.3015112]
[1741543195257,41.88,126.52,126.42,52.4615112]
[1741543195659,0.04993121,126.48,126.42,63.32731164]
[1741543196956,0.04993121,126.48,126.45,52.4615112]
[1741543197263,45.9162,126.56,126.45,52.4615112]
[1741543197461,45.9162,126.56,126.49,21.12720356]
[1741543197763,41.66,126.56,126.49,13.22120356]
[1741543197950,7.9026,126.55,126.49,13.22120356]
[1741543198150,41.66,126.56,126.48,313.3215112]
[1741543198351,0.05167265,126.53,126.51,0.05720309]
[1741543200565,41.68,126.52,126.44,52.4615112]
[1741543200768,52.4615112,126.55,126.46,52.4615112]
[1741543200769,41.8,126.55,126.46,52.4615112]
[1741543200961,8.0066,126.57,126.5,52.4615112]
[1741543201163,49.6983,126.62,126.56,7.9016]
[1741543201462,12.5799,126.62,126.54,52.4615112]
[1741543201659,0.05401197,126.6,126.56,7.9015]
[1741543201860,0.05401197,126.6,126.54,52.4615112]
[1741543202667,41.77401197,126.6,126.52,52.4615112]
[1741543202969,41.72,126.6,126.52,52.4615112]
[1741543203171,0.05499252,126.57,126.55,52.4615112]
[1741543203566,0.05499252,126.57,126.55,13.22120356]
[1741543204664,0.05499252,126.57,126.52,52.4615112]
[1741543205569,41.44,126.56,126.49,260.84]
[1741543205769,8.1321,126.55,126.49,260.84]
[1741543206068,0.04970327,126.54,126.49,260.84]
[1741543206266,0.04970327,126.54,126.52,7.9043]
[1741543206464,0.04970327,126.54,126.49,221.59969236]
[1741543207369,0.04970327,126.54,126.51,7.9047]
[1741543207573,0.04970327,126.54,126.49,274.06120356]
[1741543207769,192.0,126.65,126.52,52.4615112]
[1741543207963,41.4,126.64,126.55,52.4615112]
[1741543208165,200.44,126.65,126.57,52.4615112]
[1741543208385,200.44,126.65,126.62,7.8978]
[1741543208572,4.1775,126.65,126.59,52.4615112]
[1741543208768,4.2625,126.69,126.63,52.4615112]
[1741543209170,0.05906734,126.67,126.66,7.8955]
[1741543209577,0.05906734,126.67,126.61,60.3598112]
[1741543209877,0.05906734,126.67,126.61,7.8983]
[1741543210079,7.8972,126.64,126.57,268.6612]
[1741543210379,41.28,126.66,126.57,260.76]
[1741543210775,8.4161,126.65,126.57,260.76]
[1741543210972,8.4161,126.65,126.57,271.62580044]
[1741543211180,0.05339588,126.62,126.57,271.62580044]
[1741543211382,0.05339588,126.62,126.58,52.4615112]
[1741543211675,0.05339588,126.62,126.57,271.62580044]
[1741543211879,41.21339588,126.62,126.57,271.62580044]
[1741543212075,41.21339588,126.62,126.57,10.86580044]
[1741543212275,7.8989,126.61,126.57,10.86580044]
[1741543212476,41.21339588,126.62,126.57,10.86580044]
[1741543212670,41.21339588,126.62,126.56,90.90985058]
[1741543213580,41.21339588,126.62,126.52,7.9043]
[1741543213779,41.16,126.62,126.53,52.4615112]
[1741543213980,0.0585057,126.58,126.54,7.9028]
[1741543214177,0.0585057,126.58,126.56,52.4615112]
[1741543214976,41.0,126.66,126.56,56.4215112]
[1741543215282,41.0,126.66,126.59,52.4615112]
[1741543215882,12.2093,126.69,126.59,52.4615112]
[1741543216085,0.05946593,126.64,126.61,0.05379133]
[1741543216583,0.05946593,126.64,126.61,0.05649831]
[1741543217384,52.4615112,126.76,126.62,93.3615112]
[1741543217678,45.0176,126.75,126.66,52.4615112]
[1741543217885,52.9082,126.75,126.68,52.4615112]
[1741543218287,45.0176,126.75,126.68,52.4615112]
[1741543218484,4.0976,126.75,126.68,52.4615112]
[1741543218681,0.05586207,126.73,126.7,13.27210621]
[1741543218887,0.05586207,126.73,126.71,7.8921]
[1741543219184,200.119,126.77,126.68,52.4615112]
[1741543219378,0.06053596,126.73,126.71,0.05167737]
[1741543219978,40.82,126.72,126.62,52.4615112]
[1741543220188,56.5422112,126.71,126.61,260.68]
[1741543220385,4.0807,126.71,126.62,52.4615112]
[1741543220687,4.0807,126.71,126.64,52.4615112]
[1741543221081,4.0807,126.71,126.62,52.4615112]
[1741543221281,0.05780149,126.69,126.66,0.05941078]
[1741543221789,0.05780149,126.69,126.64,13.28061434]
[1741543221984,0.05780149,126.69,126.66,52.4615112]
[1741543222185,0.05780149,126.69,126.68,60.3560112]
[1741543222388,0.01950149,126.69,126.68,60.3560112]
[1741543222587,192.0,126.83,126.68,97.1015112]
[1741543222791,53.2799,126.82,126.74,52.4615112]
[1741543223187,40.64,126.81,126.72,52.4615112]
[1741543223584,0.0526969,126.78,126.75,0.06053267]
[1741543224887,0.0526969,126.78,126.72,21.17263623]
[1741543225085,40.5,126.77,126.7,52.4615112]
[1741543225485,40.5,126.77,126.72,52.4615112]
[1741543225686,40.5,126.77,126.7,52.4615112]
[1741543225886,0.05843524,126.74,126.7,52.4615112]
[1741543226698,3.524e-05,126.74,126.72,52.4615112]
[1741543227085,3.524e-05,126.74,126.73,7.8914]
[1741543227892,40.32,126.85,126.73,52.4615112]
[1741543228091,40.32,126.85,126.76,52.4615112]
[1741543228290,40.32,126.85,126.79,7.8872]
[1741543228491,40.32,126.85,126.79,52.4615112]
[1741543228796,12.287,126.86,126.82,7.8852]
[1741543228993,12.287,126.86,126.79,52.4615112]
[1741543229196,0.05277956,126.83,126.81,52.51162698]
[1741543229593,7.956e-05,126.83,126.82,7.8858]
[1741543230293,12.3844,126.9,126.81,52.51162698]
[1741543230294,8.243,126.9,126.81,52.51162698]
[1741543230598,7.8779,126.95,126.86,52.4615112]
[1741543230793,52.4615112,126.95,126.83,52.4615112]
[1741543231097,52.4615112,126.93,126.81,52.4615112]
[1741543231297,52.4615112,126.89,126.77,312.9215112]
[1741543231596,7.883,126.87,126.77,312.9215112]
[1741543231798,7.883,126.87,126.75,52.4615112]
[1741543231799,200.4364,126.86,126.75,52.4615112]
[1741543232098,52.4615112,126.85,126.73,52.4615112]
[1741543232298,40.16,126.84,126.77,7.8884]
[1741543232486,40.16,126.84,126.73,52.4615112]
[1741543232690,0.0503935,126.82,126.79,0.06020044]
[1741543232894,0.0503935,126.82,126.79,7.94740044]
[1741543233087,0.0503935,126.82,126.79,0.06020044]
[1741543233898,0.0503935,126.82,126.77,13.281404]
[1741543234201,9.35e-05,126.82,126.81,7.8864]
[1741543234395,8.4364,126.86,126.79,52.4615112]
[1741543234900,8.4364,126.86,126.77,52.4615112]
[1741543235392,0.05828415,126.83,126.8,0.05229286]
[1741543235598,40.05828415,126.83,126.8,0.05229286]
[1741543235798,40.05828415,126.83,126.81,7.8859]
[1741543236098,40.05828415,126.83,126.8,0.05229286]
[1741543236298,40.05828415,126.83,126.81,7.8859]
[1741543236501,40.05828415,126.83,126.8,0.05229286]
[1741543236800,0.05828415,126.83,126.8,52.51380406]
[1741543237101,0.05828415,126.83,126.82,7.8858]
[1741543237798,0.05828415,126.83,126.8,13.17779588]